Cogmind - Beta 15 @@@ ROGUE MODE // 2025.07.07 @ 15:54:31 Player: Skysub Result: Destroyed by B-75 Beast with Magnetic Acceleration Cannon Performance ------------- Evolutions (4) 2000 Regions Visited (4) 800 Robots Destroyed (45) 225 Value Destroyed (1276) 1276 Prototype IDs (12) 240 Alien Tech Used (0) 0 Bonus (0) 0 TOTAL SCORE: 4541 Bonus ------- None Cogmind --------- Core Integrity 0/850 Matter 63/300 Energy 98/100 System Corruption 4% Temperature Cool (0) Movement Core (50) Location -6/Factory Parts ------- > --- POWER (1) -------- (None) > --- PROPULSION (4) --- (None) > --- UTILITY (7) ------ Enhanced Optical Array Weapon Cycler Makeshift Hacking Suite > --- WEAPON (3) ------- (None) > --- INVENTORY (5) ---- Light Nuclear Core Advanced Weight Redist. System Improved Transmission Jammer Improved Focal Shield Heavy Particle Cannon Peak State ------------ > --- POWER ------------ Light Angular Momentum Engine > --- PROPULSION ------- Carbon-fiber Leg Carbon-fiber Leg Flexi-carbon Leg Improved VSS Leg > --- UTILITY ---------- Improved Heat Sink Advanced Heat Sink High-capacity Storage Unit Weapon Cycler Improved Transmission Jammer Improved Focal Shield Makeshift Hacking Suite > --- WEAPON ----------- Heavy Assault Rifle Autogun Gauss Rifle > --- INVENTORY -------- Carbon-fiber Leg Carbon-fiber Leg Large Matter Pod Improved Lightning Gun SUBCON Basin [Rating: 77] Favorites ----------- Power Light Ion Engine Engine Light Ion Engine Propulsion Light Treads Treads Light Treads Leg Improved Aluminum Leg Wheel Wheel Flight Unit Makeshift Flight Unit Utility High-capacity Storage Unit Device Structural Scanner Storage High-capacity Storage Unit Processor Enhanced Optical Array Hackware Makeshift Hacking Suite Protection Makeshift Light Armor Plating Weapon Assault Rifle Energy Gun Small Laser Energy Cannon Powered Cannon Ballistic Gun Assault Rifle Launcher Subdweller Shrapnel Launcher Special Weapon Mining Laser Impact Weapon Flail Build | -11 -10 -10 -9 -6 ------- Run | Yrd Mat Sub Scr Fac Slots Evolved 8 | . . . . 8 Power . | . . . . . Propulsion 2 | . . . . 2 Utility 5 | . . . . 5 Weapon 1 | . . . . 1 Parts Attached 53 | 6 7 12 6 22 Power 5 | 1 1 . 1 2 Engine 5 | 1 1 . 1 2 Core . | . . . . . Reactor . | . . . . . Propulsion 15 | 2 2 3 3 5 Treads 4 | 2 1 1 . . Leg 7 | . . . 2 5 Wheel 3 | . 1 1 1 . Hover . | . . . . . Flight 1 | . . 1 . . Utility 13 | 1 1 2 . 9 Device 8 | . . 1 . 7 Storage 2 | 1 1 . . . Processor 1 | . . . . 1 Hackware 1 | . . . . 1 Protection 1 | . . 1 . . Artifact . | . . . . . Weapon 20 | 2 3 7 2 6 Energy Gun 2 | 1 . . . 1 Energy Cannon 2 | . . 1 1 . Ballistic Gun 13 | 1 3 4 . 5 Ballistic Cannon . | . . . . . Launcher 1 | . . 1 . . Special Weapon 1 | . . 1 . . Impact Weapon 1 | . . . 1 . Slashing Weapon . | . . . . . Piercing Weapon . | . . . . . Special Melee Weapon . | . . . . . Unidentified Prototypes . | . . . . . Parts Lost 24 | . 2 3 . 19 Power 4 | . . 1 . 3 Propulsion 7 | . 1 1 . 5 Utility 4 | . . . . 4 Weapon 9 | . 1 1 . 7 Highest Loss Streak 9 | . 1 2 . 9 To Critical Strikes . | . . . . . Average Backups 6 | 1 6 10 4 3 Power . | . . . . . Propulsion 1 | . 1 2 . . Utility 2 | . . 2 3 2 Weapon 2 | . 4 5 . . Tool/Special . | . . . . . Unused Backups 17 | . . 2 10 5 Power 1 | . . . . 1 Propulsion 3 | . . . 2 1 Utility 9 | . . . 7 2 Weapon 4 | . . 2 1 1 Tool/Special . | . . . . . Average Slot Usage (%) 72 | . 85 87 52 63 Engine 7 | . 14 3 6 4 Treads 10 | . 26 12 . . Leg 4 | . . . 7 15 Wheel 8 | . 1 14 10 . Flight 2 | . . 1 5 . Device 7 | . . 12 5 17 Storage 13 | . 15 14 12 5 Energy Cannon 1 | . . 1 1 2 Ballistic Gun 13 | . 26 19 . 7 Special Weapon 1 | . . 5 . . Peak Build Rating 77 | 6 7 32 47 77 Average Rating 15 | 5 6 9 17 54 On Entrance 18 | . 6 7 32 47 Naked Turns 26 | . . . 26 . Heaviest Build 68 | 10 52 57 60 68 Greatest Support 65 | 40 40 20 29 65 Greatest Overweight (x) 5 | . 5 5 5 2 Average Overweight (x) 2 | . . 3 2 . Largest Inventory Capacity 20 | 8 20 20 20 20 Average Capacity 16 | 7 9 20 18 17 Most Carried 20 | 3 8 20 20 20 Average Carried 10 | 1 7 11 10 15 Final Capacity 20 | 8 20 20 20 5 Final Carried 20 | 3 7 20 20 5 Class Distribution -------------------- 91% | Mutant 4% | Scavenger-Mutant Dominant Class ---------------- Mutant | -10/Materials Mutant | -10/Subcaves Mutant | -9/Scraptown Scavenger-Mutant | -6/Factory Resources | -11 -10 -10 -9 -6 ----------- Run | Yrd Mat Sub Scr Fac Matter Collected 1373 | 276 346 318 128 305 Remotely . | . . . . . Salvage Created 1628 | 172 720 150 . 586 Parts 101 | 17 42 14 . 28 Haulers Intercepted . | . . . . . Recyclers Shooed 1 | . . . . 1 Parts Field Recycled . | . . . . . Retrieved Matter . | . . . . . Parts Self-Destructed 6 | . . 6 . . Prevented . | . . . . . Kills | -11 -10 -10 -9 -6 ------- Run | Yrd Mat Sub Scr Fac Combat Hostiles Destroyed 34 | . 17 6 . 11 Guns 31 | . 17 6 . 8 Cannons 1 | . . . . 1 AOE 2 | . . . . 2 Classes Destroyed 11 | 2 5 1 . 3 Builder 2 | . 1 . . 1 Tunneler 5 | 5 . . . . Recycler 2 | 1 1 . . . Operator 1 | . 1 . . . Watcher 1 | . 1 . . . Swarmer 11 | . 6 4 . 1 Grunt 16 | . 11 . . 5 Duelist 1 | . . . . 1 Sentry 2 | . . . . 2 Hunter 2 | . . . . 2 Subdweller 2 | . . 2 . . Best Kill Streak 6 | 5 6 4 . 3 Combat Bots Only 4 | . 4 4 . 3 Max Kills in Single Turn 2 | 1 2 2 . 1 Gunslinging 1 | . 1 1 . . Exploded 1 | . . . . 1 Melee . | . . . . . Uniques/NPCs Destroyed . | . . . . . Combat | -11 -10 -10 -9 -6 -------- Run | Yrd Mat Sub Scr Fac Hostile Shots Fired 379 | . 72 41 . 266 Missed 108 | . 18 6 . 84 Hits 271 | . 54 35 . 182 Melee 5 | . . . . 5 Projectile 266 | . 54 35 . 177 Critical Strikes 10 | . 1 . . 9 Part Disruptions 1 | . . . . 1 Damage Taken 3951 | . 630 552 . 2769 Core 1063 | . 87 121 . 855 Absorbed by Shields . | . . . . . Ignored by Resistances 58 | . . . . 58 Core Remaining (%) 58 | 100 . . 16 . Volleys Fired 182 | 16 64 40 . 62 Largest 3 | 2 2 2 . 3 Hottest 100 | 60 40 100 . 83 Shots Fired 312 | 32 117 57 . 106 Gun 281 | 32 117 36 . 96 Cannon 10 | . . . . 10 Launcher 1 | . . 1 . . Special 20 | . . 20 . . Kinetic 260 | 16 117 37 . 90 Thermal 46 | 16 . 20 . 10 Explosive . | . . . . . Electromagnetic 6 | . . . . 6 Robot Hit Streak 15 | 12 15 12 . 10 Robot Miss Streak 4 | 2 4 3 . 3 Penetration Max . | . . . . . Secondary Targets 4 | . 3 1 . . Max Gunslinging Chain 1 | . 1 1 . . Shots Hit Robots 193 | 23 71 26 . 73 Core Hits 78 | 9 33 9 . 27 Critical Kills 3 | 1 . . . 2 Critical Parts Destroyed 2 | 1 . . . 1 Critical Strikes 5 | 2 . . . 3 Destroy 5 | 2 . . . 3 Melee Attacks . | . . . . . Impact . | . . . . . Slashing . | . . . . . Piercing . | . . . . . Sneak Attacks . | . . . . . Combat Hostiles . | . . . . . Follow-up Attacks . | . . . . . Damage Inflicted 3156 | 245 888 318 . 1705 Guns 2705 | 245 886 318 . 1256 Cannons 394 | . . . . 394 Explosions 55 | . . . . 55 Melee . | . . . . . Ramming 2 | . 2 . . . Kinetic 2533 | 96 886 318 . 1233 Thermal 598 | 149 . . . 449 Explosive . | . . . . . Electromagnetic 23 | . . . . 23 Impact . | . . . . . Slashing . | . . . . . Piercing . | . . . . . Highest Corruption 4 | . 2 2 . 4 Average Corruption 2 | . 2 2 . 2 Corruption Purged . | . . . . . Corruption Blocked . | . . . . . Effects 36 | . 15 20 . 1 Message Errors 9 | . 2 7 . . Matter Fused 9 | . 3 6 . . Heat Flow Errors 1 | . 1 . . . Energy Discharges 5 | . 2 3 . . Data Loss (minor) 5 | . 1 3 . 1 Data Loss (major) 3 | . 2 1 . . Misfires 1 | . 1 . . . Alerts 2 | . 2 . . . Weapon Failures 1 | . 1 . . . Overload Shots . | . . . . . Overflow Damage 41 | . . . . 41 Projectiles 16 | . . . . 16 Explosions 25 | . . . . 25 Melee . | . . . . . Knockbacks . | . . . . . Impact . | . . . . . Kinetic . | . . . . . Secondary . | . . . . . Self-Inflicted Damage 161 | . . . . 161 Shots 2 | . . . . 2 Rammed 1 | . 1 . . . Targets Rammed 1 | . 1 . . . Kicked . | . . . . . Crushed . | . . . . . Highest Temperature 92 | 60 92 . . 8 Average Temperature 28 | 33 20 . . 6 Received Heat Transfer 1092 | . 279 129 . 684 Siege Activations . | . . . . . Martial Activations . | . . . . . Shielding Activations . | . . . . . Robots Disrupted . | . . . . . Combat Hostiles . | . . . . . Robots Corrupted . | . . . . . Combat Hostiles . | . . . . . Parts Fried 1 | . . . . 1 Impact Corruptions . | . . . . . Robots Melted . | . . . . . Combat Hostiles . | . . . . . Parts Melted 1 | . . . . 1 Heat Transferred 350 | 350 . . . . Parts Sabotaged . | . . . . . Parts Stolen . | . . . . . Parts Stripped . | . . . . . Power Chain Reactions 1 | . . . . 1 Alert | -11 -10 -10 -9 -6 ------- Run | Yrd Mat Sub Scr Fac Maximum Alert Level . | . . . . . Low Security (%) 100 | 100 100 . . 100 Level 1 . | . . . . . Level 2 . | . . . . . Level 3 . | . . . . . Level 4 . | . . . . . Level 5 . | . . . . . High Security . | . . . . . Max Security . | . . . . . Peak Influence 147 | 15 147 . . 137 Initial . | . . . . . Average 54 | 1 62 . . 56 Influence Increases 1168 | 30 495 110 . 533 Destroy 0b10 Robot/C 640 | . 340 80 . 220 Destroy 0b10 Robot/NC 55 | 30 20 . . 5 Destroy Leader 152 | . 72 . . 80 Successful Hack 48 | . 18 . . 30 Select Force Hacks 30 | . 30 . . . Disable Machine 60 | . . . . 60 Destroy Structure 33 | . . . . 33 Lose Combat Pursuer 150 | . 15 30 . 105 Influence Decreases 1039 | 30 489 116 . 404 Entered New Map 4 | . . 4 . . Time Decay 815 | 30 469 92 . 224 Lost Part 220 | . 20 20 . 180 Squads Dispatched 9 | . 3 . . 6 Investigation 4 | . 2 . . 2 Extermination 1 | . . . . 1 Reinforcement 1 | . 1 . . . Assault . | . . . . . Garrison 3 | . . . . 3 Intercept . | . . . . . Searches Triggered . | . . . . . Construction Impeded . | . . . . . Haulers Reinforced . | . . . . . Active Scanning Responses . | . . . . . Cargo Convoy Interrupts . | . . . . . Stealth | -11 -10 -10 -9 -6 --------- Run | Yrd Mat Sub Scr Fac Distress Signals 4 | . 3 . . 1 Communications Jammed . | . . . . . Distress Signals . | . . . . . Times Spotted 63 | . 34 8 . 21 Peak Tracking Total 6 | . 5 4 . 6 Tactical Retreats 5 | . 1 1 . 3 Traps | -11 -10 -10 -9 -6 ------- Run | Yrd Mat Sub Scr Fac Traps Triggered 4 | . 3 1 . . Indirectly . | . . . . . Trap Hack Attempts . | . . . . . Triggered . | . . . . . Disarmed . | . . . . . Reprogrammed . | . . . . . Reused . | . . . . . Traps Extracted . | . . . . . Installed . | . . . . . Triggered . | . . . . . Machines | -11 -10 -10 -9 -6 ---------- Run | Yrd Mat Sub Scr Fac Machines Disabled 5 | . . 1 . 4 Max in Single Turn 1 | . . 1 . 1 Machines Repaired . | . . . . . Machines Dismantled . | . . . . . Machines Sabotaged . | . . . . . Overloaded Fab Kills . | . . . . . Hacking | -11 -10 -10 -9 -6 --------- Run | Yrd Mat Sub Scr Fac Machines Accessed 19 | . 9 4 . 6 Terminals 10 | . 7 . . 3 Fabricators . | . . . . . Repair Stations . | . . . . . Recycling Units 3 | . 2 . . 1 Scanalyzers 1 | . . . . 1 Garrison Access 1 | . . . . 1 Total Hacks 44 | . 23 7 . 14 Successful 23 | . 12 7 . 4 Failed 21 | . 11 . . 10 Catastrophic 1 | . . . . 1 Database Lockouts . | . . . . . Manual 25 | . 19 . . 6 Terminals 24 | . 18 . . 6 Fabricators . | . . . . . Repair Stations . | . . . . . Recycling Units 8 | . 5 . . 3 Scanalyzers 4 | . . . . 4 Garrison Access 1 | . . . . 1 Terminal Hacks 9 | . 2 7 . . Record 4 | . . 4 . . Open Door 1 | . . 1 . . Zone Layout 2 | . 2 . . . Proto ID Catalog 1 | . . 1 . . Release Object 1 | . . 1 . . Fabricator Hacks . | . . . . . Repair Station Hacks . | . . . . . Recycling Unit Hacks 2 | . 1 . . 1 Report Inventory 2 | . 1 . . 1 Scanalyzer 2 | . . . . 2 Insert Component 1 | . . . . 1 Analyze 1 | . . . . 1 Garrison Access Hacks . | . . . . . Unauthorized Hacks 10 | . 9 . . 1 Terminals 9 | . 8 . . 1 Botnet 4 | . 3 . . 1 Skim 5 | . 5 . . . Fabricators . | . . . . . Repair Stations . | . . . . . Recycling Units 1 | . 1 . . . Tunnel 1 | . 1 . . . Scanalyzers . | . . . . . Garrison Access . | . . . . . Data Cores Recovered 1 | . 1 . . . Used . | . . . . . Hacking Detections 12 | . 6 . . 6 Full Trace Events 2 | . . . . 2 Feedback Events . | . . . . . Feedback Blocked . | . . . . . Robot Schematics Acquired . | . . . . . Robots Built . | . . . . . Authchips . | . . . . . Time . | . . . . . Total Robot Build Rating . | . . . . . Part Schematics Acquired 1 | . . . . 1 Parts Built . | . . . . . Authchips . | . . . . . Time . | . . . . . Total Part Build Rating . | . . . . . Parts Repaired . | . . . . . Time . | . . . . . Parts Recycled . | . . . . . Recycled Matter . | . . . . . Retrieved Matter . | . . . . . Retrieved Components . | . . . . . Parts Scanalyzed 1 | . . . . 1 Part Schematics Acquired 1 | . . . . 1 Parts Damaged . | . . . . . Bothacking | -11 -10 -10 -9 -6 ------------ Run | Yrd Mat Sub Scr Fac Used RIF Installer . | . . . . . Robots Hacked . | . . . . . Non-combat . | . . . . . Combat . | . . . . . Robot Hacks Applied . | . . . . . Relay Couplers Released . | . . . . . Fabnet Peak Effective % . | . . . . . Robots Rewired . | . . . . . Allies Hacked . | . . . . . Hacks Repelled . | . . . . . Allies | -11 -10 -10 -9 -6 -------- Run | Yrd Mat Sub Scr Fac Total Allies . | . . . . . Largest Group . | . . . . . Highest-Rated Group . | . . . . . Highest-Rated Ally . | . . . . . Total Orders . | . . . . . Ally Attacks . | . . . . . Total Damage . | . . . . . Kills . | . . . . . Allies Corrupted . | . . . . . Allies Melted . | . . . . . Intel | -11 -10 -10 -9 -6 ------- Run | Yrd Mat Sub Scr Fac Active Infowar (turns) 2358 | . . 1604 677 77 Optics 31 | . . . . 31 Structural 2281 | . . 1604 677 . Jamming 46 | . . . . 46 Robot Analysis Total . | . . . . . Derelict Logs Recovered 4 | . . 1 3 . Drone Launches . | . . . . . Drone Recoveries . | . . . . . Exploration | -11 -10 -10 -9 -6 ------------- Run | Yrd Mat Sub Scr Fac Turns Passed 5904 | 225 1420 1738 1876 645 Spaces Moved 3483 | 108 649 1063 1334 329 Core 145 | 3 . . 48 94 Treads 753 | 105 648 . . . Legs 433 | . . . 198 235 Wheels 2050 | . 1 1063 986 . Hover . | . . . . . Flight 102 | . . . 102 . Fastest Speed 50 | 50 155 130 50 50 Average Speed 141 | 156 159 139 136 129 Slowest Speed 510 | 160 160 155 510 260 Overloaded Moves . | . . . . . Propulsion Burnouts . | . . . . . Robots Hopped . | . . . . . Potential Cave-ins . | . . . . . Cave-ins Triggered . | . . . . . Exploration Rate (%) 43 | 6 95 51 57 10 Regions Visited 4 Branch Regions 2 Pre-discovered Areas 4 | . 2 1 1 . Known Exits Taken 1 | . 1 . . . Unknown Exits Taken 3 | 1 . 1 1 . Scrap Searched 9 | . . 5 4 . Spaces Dug 15 | . . 15 . . Terrain Destroyed 44 | . . 15 . 29 Melee . | . . . . . Projectile 1 | . . . . 1 AOE 43 | . . 15 . 28 Terrain Rammed . | . . . . . Walls Destroyed . | . . . . . Machines Disabled . | . . . . . Actions | -11 -10 -10 -9 -6 --------- Run | Yrd Mat Sub Scr Fac Total 4132 | 132 912 1224 1408 456 Wait 283 | . 182 82 . 19 Move 3479 | 107 648 1062 1333 329 Hop . | . . . . . Pick Up 52 | 3 8 11 22 8 Fast Attach 31 | 6 . . 9 16 Attach 17 | . 3 4 3 7 Detach 18 | . . 2 11 5 Swap 16 | . 4 10 . 2 Drop 52 | . 2 13 30 7 Fire 182 | 16 64 40 . 62 Melee . | . . . . . Ram . | . . . . . Kick . | . . . . . Crush 1 | . 1 . . . Escape Stasis . | . . . . . Rewire . | . . . . . Trap . | . . . . . Miscellaneous 1 | . . . . 1 Route ------- -11/Scrapyard -10/Materials (discovered 5 exits: [*Mat x3] / [*Min] / *Sub) -10/Subcaves (discovered 4 exits: [*Mat x2] / [*Rec] / *Scr) -9/Scraptown -6/Factory (discovered 1 exit: Fac) History --------- Turn | Location | Event 48 | -11/Scrapyard | Discovered new exit (range 14) 226 | -11/Scrapyard | Entered Materials 315 | -10/Materials | Build established: Mutant 388 | -10/Materials | Discovered new exit (range 13) 448 | -10/Materials | Discovered new exit (range 10) 508 | -10/Materials | Discovered new exit (range 16) 1276 | -10/Materials | Discovered new exit (range 14) 1298 | -10/Materials | Identified exit to Subcaves 1349 | -10/Materials | Learned Storage trap positions 1392 | -10/Materials | Learned location of Mines (-10) 1426 | -10/Materials | Learned location of 1 exit from Storage 1452 | -10/Materials | Learned 4 Subcaves zone layouts 1470 | -10/Materials | Learned Storage security intel 1628 | -10/Materials | Loaded intel: 2 recycling unit locations 1646 | -10/Materials | Entered Subcaves 1647 | -10/Subcaves | Approached by a straggling Scientist 1710 | -10/Subcaves | Core integrity fell below 50% 1962 | -10/Subcaves | Shifting Twisted Machinery released Mak. Light Armor Plating 2006 | -10/Subcaves | Discovered new exit (range 14) 2064 | -10/Subcaves | Shifting Twisted Machinery released Battle Rifle 2146 | -10/Subcaves | Visited Clippyterm 2151 | -10/Subcaves | Learned Factory emergency access door positions 2268 | -10/Subcaves | Learned location of Zion (-6) 2371 | -10/Subcaves | Discovered new exit (range 7) 2406 | -10/Subcaves | Scientist uncovered a shortcut to Scraptown 2490 | -10/Subcaves | Shifting Twisted Machinery released Riot Gun 2533 | -10/Subcaves | Core integrity fell below 20% 2609 | -10/Subcaves | Shifting Twisted Machinery released Hvy. Riot Gun 2649 | -10/Subcaves | Discovered new exit (range 10) 2922 | -10/Subcaves | Visited 4L-MR0's lab 2942 | -10/Subcaves | Found Powered Cannon 3280 | -10/Subcaves | Found SUBCON Basin 3384 | -10/Subcaves | Entered Scraptown 3384 | -9/Scraptown | System corruption cleaned by C-Scrubber 3486 | -9/Scraptown | Scanned Subdweller tech in exchange for log data 3488 | -9/Scraptown | Learned location of Testing (-2) 3490 | -9/Scraptown | Learned 8 Factory zone layouts 3491 | -9/Scraptown | Learned location of 1 exit from Research 4049 | -9/Scraptown | Discovered new exit (range 11) 4640 | -9/Scraptown | Visited Symbiants 4673 | -9/Scraptown | Visited Awakened 4696 | -9/Scraptown | Visited Assassins FH 4721 | -9/Scraptown | Visited Cave Peace 4761 | -9/Scraptown | Visited Red Mages 4813 | -9/Scraptown | Visited Spacefarers 4850 | -9/Scraptown | Visited Shadow of the Wyrm 5094 | -9/Scraptown | Attached Powered Cannon, gained temporary slot: Power 5260 | -9/Scraptown | Entered Factory 5260 | -6/Factory | Evolved 8 slots: Propulsion x2, Utility x5, Weapon x1 5261 | -6/Factory | Identified exit to Factory 5500 | -6/Factory | Garrison activated, responded to threat 5559 | -6/Factory | Lost 8 parts (1p2n2u3w) 5833 | -6/Factory | Core integrity fell below 50% 5837 | -6/Factory | Released subatomizers from SUBCON Basin 5872 | -6/Factory | Spotted B-75 Beast 5888 | -6/Factory | Lost 9 parts (1p3n1u4w) 5897 | -6/Factory | Core integrity fell below 20% 5905 | -6/Factory | Destroyed by B-75 Beast with Magnetic Acceleration Cannon Last Messages --------------- 05854_ Dropped Hcp. Storage Unit. 05854_ Dropped Lrg. Matter Pod. 05857_ Carbon-fiber Leg destroyed. 05860_ K-01 Serf cleans the Subcomponent Replicator. 05861_ Acquired Adv. Weight Redist. System. 05862_ System corrupted: Component data lost. 05872_ Fabricator disabled. 05874_ Acquired Enh. Optical Array. 05878_ T-07 Excavator destroyed. 05879_ Dropped Adv. Heat Sink. 05879_ Acquired Hvy. Particle Cannon. 05888_ Connecting with Terminal... >>Trojan(Botnet) Trojan loaded successfully. Testing... Terminal linked with 0 systems. Awaiting botnet instructions. 05900_ K-01 Serf cleans the Megafabricator. 05901_ K-01 Serf collects debris. 05905_ R-10 Processor collects Lgt. Ion Engine. Map ----- +----------------------------------------------------+ | ! #? #?????????##############????????????????? | | " #? #?????????# #????????????????? | | " #? #?????????# """ #????????????????? | | " # #?????????# "T #????????????????? | | # #?????????# """ #????????????????? | | " + +?????????# #????????????????? | | " # #?????????# """" """" #????????????????? | | " ### #?????????# """" """" #????????????????? | | #?# #?????????# """" """" #????????????????? | | #?# ##+#??????# """" """" #????????????????? | | #?# #??????#! """" """" #????????????????? | | " "" ### #??????# """" """" #????????????????? | | "G"" + #??????# #????????????????? | | ########+## #??#######;##p#+#####????????????????? | | #??# # #??# ^ #????????????????????? | | #??# """" + #??# #????????????????????? | | #??# """" # #??#!!! ! !p #????????????????????? | | #??# """" # #??#!!! !!! #????????????????????? | | #??# """" # #??#! !!! #????????????????????? | | #??# # #??# R%= #????????????????????? | | #?######### ;###t =! #????????????????????? | | g k #????????????????????? | | k BB#????????????????????? | | """"""""" """"BB#????????????????????? | | """"""""" Fu +????????????????????? | | """"""""" @ #????????????????????? | | ## """"""""" #????????????????????? | | ?????????"""""" % #????????????????????? | | ??????????""""" #????????????????????? | | ????????? #????????????????????? | | ??????? #????????????????????? | | ?????? ???????????????????? | | ????? ???????????????????? | | ????? k###+########;####??????????????????? | | ????? ????????????##?????????????????????? | | ????? ???????????????????????????????????? | | ????? ???????????????????????????????????? | | ????? ? ????????????????????????????????????? | | ?????? ??????????????????????????????????????? | | ??????? ???????????????????????????????????????? | | ?????????????????????????????????????????????????? | | ?????????????????????????????????????????????????? | | ?????????????????????????????????????????????????? | | ?????????????????????????????????????????????????? | | ?????????????????????????????????????????????????? | | ?????????????????????????????????????????????????? | | ?????????????????????????????????????????????????? | | ??????????????+??????????????????????????????????? | | ?????????????????????????????????????????????????? | | ?????????????????????+???????????????????????????? | +----------------------------------------------------+ Best States ------------- Heat Dissipation 73 Energy Generation 18 Energy Capacity 290 Matter Stores 300 Matter Capacity 300 Sight Range 22 Terrain Scan Density 10 Jamming Range 14 Armor Coverage 100 Resistance: KI 25 Weapon Cycling 15 Phase Shifting 5 Evasion (%) 59 Recoil Reduction 2 Offensive Hacking 11 Item Schematics ----------------- Imp. Lightning Gun | -6/Factory | Scanalyzed Robot Schematics ------------------ None Fabricated ------------ Nothing Repaired ---------- Nothing Alien Tech Used ----------------- None Achievements -------------- Safety First Challenges ------------ None Game ------ Seed ImpactMatterSubcomponent Manual? 0 Play Time 00:36:03 Cumulative 141.4 hours Start 2025.07.07 @ 15:19:41 End 2025.07.07 @ 15:54:31 Sessions 1 Manual Loads 0 Difficulty Rogue Special Mode None Game No. 153 Rogue 153 Adventurer 0 Explorer 0 Win Type - Total 3 Types 1/0/0/1/0/0/0/0/0/1 Lore% 63 Gallery% 59 Achievement% 52 Wizard Run 0 Options --------- Layout 1 ASCII 0 Keyboard 1 Movement Numpad Keybinds 0 Fullscreen 1 Font 32/SmallcapsGlow Map View 77x35 Zoom Use 0% Tactical HUD 1 Map Filters NONE Filters NONE Steam 1 RUN: fa1fc09e-8739-4d35-85e9-889ae446f7a5